[Event "World Prestigious University 2019"]
[Site "Tianjin"]
[Date "2019.11.27"]
[Round "6.17"]
[White "Chandra, Akshat"]
[Black "Behar, Joshua"]
[Result "1-0"]
[WhiteElo "2524"]
[BlackElo "1974"]
[PlyCount "85"]
[EventDate "2019.11.26"]
[EventType "team-tourn"]
[EventCountry "CHN"]
[TimeControl "1500+10"]
[WhiteClock "0:01:08"]
[BlackClock "0:05:34"]

1. Nf3 {[%emt 0:00:00]} Nf6 {[%emt 0:00:00]} 2. g3 {[%emt 0:00:00]} b6 {[%emt 0:00:00]} 3. Bg2 {[%emt 0:00:00]} Bb7 {[%emt 0:00:00]} 4. O-O {[%emt 0:00:00]} e6 {[%emt 0:00:00]} 5. c4 {[%emt 0:00:40]} Be7 {[%emt 0:00:06]} 6. d4 {[%emt 0:00:04]} O-O {[%emt 0:00:06]} 7. Nc3 {[%emt 0:00:02]} d5 {[%emt 0:00:20]} 8. cxd5 {[%emt 0:00:04]} Nxd5 {[%emt 0:00:07]} 9. Qc2 {[%emt 0:00:11]} Bf6 {[%emt 0:02:54]} 10. e4 {[%emt 0:00:23]} Nxc3 {[%emt 0:00:03]} 11. bxc3 {[%emt 0:00:02]} g6 {[%emt 0:00:02]} 12. Bh6 {[%emt 0:00:04]} Bg7 {[%emt 0:00:07]} 13. Bxg7 {[%emt 0:00:02]} Kxg7 {[%emt 0:00:01]} 14. Rad1 {[%emt 0:00:02]} Nd7 {[%emt 0:00:04]} 15. c4 {[%emt 0:00:07]} Qe7 {[%emt 0:00:12]} 16. Rfe1 {[%emt 0:01:18]} e5 {[%emt 0:01:16]} 17. c5 {[%emt 0:00:47]} Qf6 {[%emt 0:02:44]} 18. cxb6 {[%emt 0:00:17]} cxb6 {[%emt 0:03:30]} 19. Qc7 {[%emt 0:00:04]} Qc6 {[%emt 0:00:01]} 20. Rc1 {[%emt 0:00:17]} Qxc7 {[%emt 0:00:04]} 21. Rxc7 {[%emt 0:00:04]} Bc8 {[%emt 0:00:01]} 22. d5 {[%emt 0:02:04]} Re8 {[%emt 0:01:02]} 23. Bf1 {[%emt 0:01:27]} a6 {[%emt 0:00:36]} 24. a4 {[%emt 0:02:16]} Rb8 {[%emt 0:01:04]} 25. Rb1 {[%emt 0:02:18]} Kf8 {[%emt 0:02:01]} 26. Bxa6 {[%emt 0:02:29]} Bxa6 {[%emt 0:02:35]} 27. Rxd7 {[%emt 0:00:03]} h6 {[%emt 0:00:12]} 28. Rc1 {[%emt 0:03:22]} Rbc8 {[%emt 0:03:50]} 29. Rxc8 {[%emt 0:01:11]} Bxc8 {[%emt 0:00:17]} 30. Rc7 {[%emt 0:01:58]} Bg4 {[%emt 0:00:15]} 31. Nd2 {[%emt 0:00:01]} Be2 {[%emt 0:01:01]} 32. f3 {[%emt 0:00:28]} Bd1 {[%emt 0:01:42]} 33. Nc4 {[%emt 0:00:33]} Bxf3 {[%emt 0:00:51]} 34. Nd6 {[%emt 0:00:03]} Re7 {[%emt 0:00:12]} 35. Rc8+ {[%emt 0:00:03]} Kg7 {[%emt 0:00:05]} 36. Ne8+ {[%emt 0:00:02]} Rxe8 {[%emt 0:02:38]} 37. Rxe8 {[%emt 0:00:05]} Bxe4 {[%emt 0:00:01]} 38. Rxe5 {[%emt 0:00:40]} Bc2 {[%emt 0:00:02]} 39. a5 {[%emt 0:01:47]} bxa5 {[%emt 0:00:15]} 40. d6 {[%emt 0:00:02]} Ba4 {[%emt 0:00:21]} 41. Rxa5 {[%emt 0:00:03]} Bc6 {[%emt 0:00:03]} 42. Re5 {[%emt 0:01:11]} Kf6 {[%emt 0:00:11]} 43. Re7 {[%emt 0:00:02]} 1-0

[Event "World Prestigious University 2019"]
[Site "Tianjin"]
[Date "2019.11.28"]
[Round "7.1"]
[White "Theodorou, Nikolas"]
[Black "TannerAustin, McNamara"]
[Result "1-0"]
[WhiteElo "2555"]
[BlackElo "1983"]
[PlyCount "107"]
[EventDate "2019.11.26"]
[EventType "team-tourn"]
[EventCountry "CHN"]
[TimeControl "1500+10"]
[WhiteClock "0:01:06"]
[BlackClock "0:06:22"]

1. d4 {[%emt 0:00:00]} d5 {[%emt 0:00:00]} 2. c4 {[%emt 0:00:00]} c6 {[%emt 0:00:00]} 3. Nf3 {[%emt 0:00:00]} Nf6 {[%emt 0:00:02]} 4. g3 {[%emt 0:00:00]} e6 {[%emt 0:00:25]} 5. Bg2 {[%emt 0:00:03]} Nbd7 {[%emt 0:00:08]} 6. O-O {[%emt 0:00:15]} Be7 {[%emt 0:00:04]} 7. Qc2 {[%emt 0:00:10]} O-O {[%emt 0:00:11]} 8. Nbd2 {[%emt 0:00:07]} b6 {[%emt 0:00:36]} 9. e4 {[%emt 0:00:12]} Nxe4 {[%emt 0:00:39]} 10. Nxe4 {[%emt 0:00:04]} dxe4 {[%emt 0:00:02]} 11. Qxe4 {[%emt 0:00:25]} Bb7 {[%emt 0:01:32]} 12. Rd1 {[%emt 0:00:20]} Nf6 {[%emt 0:00:09]} 13. Qe2 {[%emt 0:00:28]} Qc8 {[%emt 0:02:05]} 14. Bf4 {[%emt 0:00:04]} Re8 {[%emt 0:00:10]} 15. a3 {[%emt 0:01:59]} c5 {[%emt 0:01:47]} 16. dxc5 {[%emt 0:00:06]} Bxc5 {[%emt 0:00:01]} 17. b4 {[%emt 0:00:02]} Bf8 {[%emt 0:00:15]} 18. Rac1 {[%emt 0:00:28]} a5 {[%emt 0:04:15]} 19. c5 {[%emt 0:00:02]} bxc5 {[%emt 0:00:32]} 20. bxc5 {[%emt 0:00:03]} Nd5 {[%emt 0:01:00]} 21. Be5 {[%emt 0:00:02]} Bc6 {[%emt 0:01:43]} 22. Qc2 {[%emt 0:01:04]} h6 {[%emt 0:00:46]} 23. Nd4 {[%emt 0:00:28]} a4 {[%emt 0:02:20]} 24. h4 {[%emt 0:03:29]} Ra5 {[%emt 0:00:46]} 25. Bd6 {[%emt 0:01:26]} Qd7 {[%emt 0:01:17]} 26. Qd2 {[%emt 0:00:40]} Ra6 {[%emt 0:02:08]} 27. Qd3 {[%emt 0:01:20]} Ra5 {[%emt 0:00:34]} 28. Bxf8 {[%emt 0:01:08]} Rxf8 {[%emt 0:00:03]} 29. Nxc6 {[%emt 0:00:04]} Qxc6 {[%emt 0:00:02]} 30. Bxd5 {[%emt 0:00:28]} exd5 {[%emt 0:01:21]} 31. Qxd5 {[%emt 0:00:03]} Rc8 {[%emt 0:00:42]} 32. Qxc6 {[%emt 0:00:37]} Rxc6 {[%emt 0:00:01]} 33. Rd8+ {[%emt 0:00:22]} Kh7 {[%emt 0:00:03]} 34. Rd5 {[%emt 0:00:02]} Kg6 {[%emt 0:00:37]} 35. g4 {[%emt 0:02:41]} Kf6 {[%emt 0:01:12]} 36. Rf5+ {[%emt 0:01:06]} Ke7 {[%emt 0:00:03]} 37. Rc4 {[%emt 0:00:05]} g6 {[%emt 0:00:52]} 38. Re5+ {[%emt 0:00:41]} Kf6 {[%emt 0:01:11]} 39. f4 {[%emt 0:00:04]} Rb5 {[%emt 0:00:01]} 40. g5+ {[%emt 0:00:19]} hxg5 {[%emt 0:00:08]} 41. hxg5+ {[%emt 0:00:02]} Kg7 {[%emt 0:00:03]} 42. Kf2 {[%emt 0:02:14]} f6 {[%emt 0:01:11]} 43. Re7+ {[%emt 0:02:06]} Kf8 {[%emt 0:00:02]} 44. Rce4 {[%emt 0:00:02]} Rb8 {[%emt 0:00:28]} 45. R7e6 {[%emt 0:00:48]} Rxc5 {[%emt 0:00:40]} 46. Rxf6+ {[%emt 0:00:10]} Kg7 {[%emt 0:00:11]} 47. Re7+ {[%emt 0:00:16]} Kh8 {[%emt 0:00:01]} 48. Rxg6 {[%emt 0:00:15]} Rc3 {[%emt 0:00:01]} 49. Re3 {[%emt 0:00:39]} Rb2+ {[%emt 0:00:20]} 50. Kf3 {[%emt 0:00:02]} Rxe3+ {[%emt 0:00:01]} 51. Kxe3 {[%emt 0:00:02]} Rb3+ {[%emt 0:00:01]} 52. Ke4 {[%emt 0:00:01]} Rxa3 {[%emt 0:00:01]} 53. Ra6 {[%emt 0:00:02]} Ra1 {[%emt 0:00:01]} 54. Kf5 {[%emt 0:00:02]} 1-0

[Event "World Prestigious University 2019"]
[Site "Tianjin"]
[Date "2019.11.28"]
[Round "7.2"]
[White "Lei, Sean"]
[Black "Chandra, Akshat"]
[Result "0-1"]
[WhiteElo "1895"]
[BlackElo "2524"]
[PlyCount "84"]
[EventDate "2019.11.26"]
[EventType "team-tourn"]
[EventCountry "CHN"]
[TimeControl "1500+10"]
[WhiteClock "0:05:33"]
[BlackClock "0:00:32"]

1. e4 {[%emt 0:00:00]} c5 {[%emt 0:00:00]} 2. Nf3 {[%emt 0:00:00]} d6 {[%emt 0:00:00]} 3. c3 {[%emt 0:00:00]} Nf6 {[%emt 0:00:00]} 4. Be2 {[%emt 0:00:00]} Bd7 {[%emt 0:01:09]} 5. d3 {[%emt 0:00:01]} Bc6 {[%emt 0:00:03]} 6. O-O {[%emt 0:00:04]} Nbd7 {[%emt 0:00:02]} 7. Re1 {[%emt 0:01:21]} g6 {[%emt 0:01:20]} 8. Bf1 {[%emt 0:00:14]} Bg7 {[%emt 0:00:07]} 9. Nbd2 {[%emt 0:04:46]} O-O {[%emt 0:00:03]} 10. d4 {[%emt 0:02:43]} e6 {[%emt 0:00:05]} 11. b3 {[%emt 0:01:41]} b5 {[%emt 0:00:56]} 12. Bb2 {[%emt 0:00:27]} a5 {[%emt 0:00:15]} 13. a3 {[%emt 0:00:23]} Qb8 {[%emt 0:04:56]} 14. Qb1 {[%emt 0:04:41]} Rc8 {[%emt 0:03:07]} 15. Bd3 {[%emt 0:01:54]} a4 {[%emt 0:00:28]} 16. b4 {[%emt 0:00:11]} Nb6 {[%emt 0:02:22]} 17. Nf1 {[%emt 0:03:35]} cxb4 {[%emt 0:00:20]} 18. cxb4 {[%emt 0:00:03]} d5 {[%emt 0:02:21]} 19. e5 {[%emt 0:00:02]} Ne4 {[%emt 0:00:07]} 20. Ng3 {[%emt 0:00:53]} Qb7 {[%emt 0:00:46]} 21. Bxe4 {[%emt 0:01:57]} dxe4 {[%emt 0:00:03]} 22. Nxe4 {[%emt 0:00:03]} Bxe4 {[%emt 0:00:09]} 23. Rxe4 {[%emt 0:00:15]} Rc7 {[%emt 0:00:08]} 24. Re1 {[%emt 0:00:27]} Rac8 {[%emt 0:00:04]} 25. Rc1 {[%emt 0:00:57]} Bh6 {[%emt 0:00:31]} 26. Rxc7 {[%emt 0:00:04]} Qxc7 {[%emt 0:00:55]} 27. Qd3 {[%emt 0:00:24]} Qc2 {[%emt 0:00:04]} 28. Qxc2 {[%emt 0:00:51]} Rxc2 {[%emt 0:00:03]} 29. Rb1 {[%emt 0:00:23]} Nc4 {[%emt 0:00:03]} 30. Ba1 {[%emt 0:00:07]} Nxa3 {[%emt 0:00:38]} 31. Rd1 {[%emt 0:00:03]} Rc4 {[%emt 0:02:53]} 32. g3 {[%emt 0:00:38]} Nc2 {[%emt 0:00:09]} 33. Kf1 {[%emt 0:00:38]} a3 {[%emt 0:00:10]} 34. Ne1 {[%emt 0:00:32]} Nxe1 {[%emt 0:00:25]} 35. Kxe1 {[%emt 0:00:06]} Rc2 {[%emt 0:00:25]} 36. h4 {[%emt 0:00:12]} Bf8 {[%emt 0:00:08]} 37. Kf1 {[%emt 0:00:21]} Bxb4 {[%emt 0:00:08]} 38. Kg2 {[%emt 0:00:08]} Bd2 {[%emt 0:00:39]} 39. Kf3 {[%emt 0:00:07]} b4 {[%emt 0:00:02]} 40. Rb1 {[%emt 0:00:09]} Rc1 {[%emt 0:00:05]} 41. Rxc1 {[%emt 0:00:03]} Bxc1 {[%emt 0:00:02]} 42. Ke2 {[%emt 0:00:04]} Bb2 {[%emt 0:00:16]} 0-1

[Event "World Prestigious University 2019"]
[Site "Tianjin"]
[Date "2019.11.28"]
[Round "7.3"]
[White "Derakhshani, Dorsa"]
[Black "Zhou, Qiyu"]
[Result "1/2-1/2"]
[WhiteElo "2277"]
[BlackElo "2216"]
[PlyCount "52"]
[EventDate "2019.11.26"]
[EventType "team-tourn"]
[EventCountry "CHN"]
[TimeControl "1500+10"]
[WhiteClock "0:20:21"]
[BlackClock "0:15:24"]

1. e4 {[%emt 0:00:00]} e5 {[%emt 0:00:00]} 2. Nf3 {[%emt 0:00:00]} Nc6 {[%emt 0:00:00]} 3. Nc3 {[%emt 0:00:00]} Nf6 {[%emt 0:00:00]} 4. d4 {[%emt 0:00:02]} exd4 {[%emt 0:00:00]} 5. Nxd4 {[%emt 0:00:02]} Bb4 {[%emt 0:00:00]} 6. Nxc6 {[%emt 0:00:03]} bxc6 {[%emt 0:00:00]} 7. Bd3 {[%emt 0:00:04]} d5 {[%emt 0:00:00]} 8. exd5 {[%emt 0:00:03]} cxd5 {[%emt 0:00:00]} 9. O-O {[%emt 0:00:04]} O-O {[%emt 0:00:05]} 10. Bg5 {[%emt 0:00:03]} c6 {[%emt 0:00:03]} 11. Qf3 {[%emt 0:00:15]} Bd6 {[%emt 0:00:03]} 12. Rae1 {[%emt 0:00:11]} Rb8 {[%emt 0:00:02]} 13. Nd1 {[%emt 0:00:05]} h6 {[%emt 0:00:57]} 14. Bxf6 {[%emt 0:00:04]} Qxf6 {[%emt 0:00:02]} 15. Qxf6 {[%emt 0:00:04]} gxf6 {[%emt 0:00:01]} 16. b3 {[%emt 0:00:14]} d4 {[%emt 0:01:38]} 17. Re4 {[%emt 0:02:49]} c5 {[%emt 0:00:47]} 18. Rh4 {[%emt 0:00:16]} Kg7 {[%emt 0:00:05]} 19. f4 {[%emt 0:00:08]} Re8 {[%emt 0:01:46]} 20. Nf2 {[%emt 0:00:10]} f5 {[%emt 0:00:18]} 21. Nh1 {[%emt 0:00:13]} Re3 {[%emt 0:01:39]} 22. Ng3 {[%emt 0:04:41]} Kg6 {[%emt 0:00:07]} 23. Rg4+ {[%emt 0:00:42]} Kf6 {[%emt 0:01:07]} 24. Rh4 {[%emt 0:01:47]} Kg6 {[%emt 0:00:08]} 25. Rg4+ {[%emt 0:00:23]} Kf6 {[%emt 0:00:01]} 26. Rh4 {[%emt 0:01:33]} Kg6 {[%emt 0:00:02]} 1/2-1/2

[Event "World Prestigious University 2019"]
[Site "Tianjin"]
[Date "2019.11.28"]
[Round "7.4"]
[White "Isakov, Michael"]
[Black "Fernandez, Daniel Howard"]
[Result "1-0"]
[WhiteElo "2162"]
[BlackElo "2444"]
[PlyCount "63"]
[EventDate "2019.11.26"]
[EventType "team-tourn"]
[EventCountry "CHN"]
[TimeControl "1500+10"]
[WhiteClock "0:01:38"]
[BlackClock "0:11:43"]

1. d4 {[%emt 0:00:00]} Nf6 {[%emt 0:00:00]} 2. Nf3 {[%emt 0:00:00]} g6 {[%emt 0:00:00]} 3. c4 {[%emt 0:00:00]} Bg7 {[%emt 0:00:00]} 4. Nc3 {[%emt 0:00:00]} d6 {[%emt 0:00:09]} 5. e4 {[%emt 0:00:00]} O-O {[%emt 0:00:03]} 6. Be2 {[%emt 0:00:00]} e5 {[%emt 0:00:02]} 7. dxe5 {[%emt 0:00:00]} dxe5 {[%emt 0:00:05]} 8. O-O {[%emt 0:00:00]} Nbd7 {[%emt 0:04:00]} 9. Qc2 {[%emt 0:00:44]} c6 {[%emt 0:00:14]} 10. Rd1 {[%emt 0:00:11]} Qc7 {[%emt 0:00:24]} 11. h3 {[%emt 0:02:26]} Nc5 {[%emt 0:00:17]} 12. Be3 {[%emt 0:00:04]} Ne6 {[%emt 0:00:19]} 13. b4 {[%emt 0:00:30]} Nf4 {[%emt 0:01:28]} 14. Bf1 {[%emt 0:00:06]} h6 {[%emt 0:02:31]} 15. Bc5 {[%emt 0:03:53]} Re8 {[%emt 0:00:34]} 16. Bd6 {[%emt 0:00:44]} Nxh3+ {[%emt 0:03:32]} 17. gxh3 {[%emt 0:00:12]} Qb6 {[%emt 0:01:30]} 18. Rd2 {[%emt 0:01:46]} a5 {[%emt 0:03:12]} 19. b5 {[%emt 0:01:57]} Bd7 {[%emt 0:00:44]} 20. Rad1 {[%emt 0:01:15]} Rad8 {[%emt 0:01:15]} 21. Na4 {[%emt 0:00:45]} Qa7 {[%emt 0:00:16]} 22. Bc7 {[%emt 0:00:44]} Rc8 {[%emt 0:01:16]} 23. b6 {[%emt 0:00:04]} Qa8 {[%emt 0:00:40]} 24. Rxd7 {[%emt 0:00:04]} Nxd7 {[%emt 0:00:09]} 25. Rxd7 {[%emt 0:00:02]} Re6 {[%emt 0:03:18]} 26. Nc5 {[%emt 0:00:50]} Ree8 {[%emt 0:00:21]} 27. Nd3 {[%emt 0:00:33]} a4 {[%emt 0:00:16]} 28. Qd2 {[%emt 0:00:48]} f6 {[%emt 0:00:53]} 29. c5 {[%emt 0:00:37]} a3 {[%emt 0:00:09]} 30. Qb4 {[%emt 0:00:09]} Rxc7 {[%emt 0:00:53]} 31. bxc7 {[%emt 0:00:11]} Qc8 {[%emt 0:00:02]} 32. Qc4+ {[%emt 0:00:02]} 1-0

[Event "World Prestigious University 2019"]
[Site "Tianjin"]
[Date "2019.11.28"]
[Round "7.5"]
[White "Behar, Joshua"]
[Black "Lu, Andrew H"]
[Result "1/2-1/2"]
[WhiteElo "1974"]
[BlackElo "2071"]
[PlyCount "72"]
[EventDate "2019.11.26"]
[EventType "team-tourn"]
[EventCountry "CHN"]
[TimeControl "1500+10"]
[WhiteClock "0:01:06"]
[BlackClock "0:00:41"]

1. e4 {[%emt 0:00:00]} c5 {[%emt 0:00:00]} 2. Nf3 {[%emt 0:00:00]} d6 {[%emt 0:00:00]} 3. c3 {[%emt 0:00:00]} Nf6 {[%emt 0:00:00]} 4. h3 {[%emt 0:00:00]} Bd7 {[%emt 0:00:00]} 5. Bd3 {[%emt 0:00:00]} g6 {[%emt 0:00:04]} 6. O-O {[%emt 0:00:06]} Bg7 {[%emt 0:00:04]} 7. Bc2 {[%emt 0:00:01]} O-O {[%emt 0:00:24]} 8. d4 {[%emt 0:00:02]} Bc6 {[%emt 0:00:27]} 9. Re1 {[%emt 0:00:15]} b6 {[%emt 0:00:14]} 10. b3 {[%emt 0:00:52]} Nbd7 {[%emt 0:00:29]} 11. Bb2 {[%emt 0:00:09]} Qc7 {[%emt 0:00:30]} 12. Nbd2 {[%emt 0:00:48]} e5 {[%emt 0:02:18]} 13. Rc1 {[%emt 0:00:34]} Nh5 {[%emt 0:02:07]} 14. g3 {[%emt 0:00:42]} Rae8 {[%emt 0:00:51]} 15. Bd3 {[%emt 0:00:55]} d5 {[%emt 0:01:25]} 16. exd5 {[%emt 0:03:14]} Bxd5 {[%emt 0:00:01]} 17. dxe5 {[%emt 0:04:18]} Nxe5 {[%emt 0:00:58]} 18. Nxe5 {[%emt 0:01:08]} Rxe5 {[%emt 0:03:51]} 19. Rxe5 {[%emt 0:02:49]} Bxe5 {[%emt 0:00:14]} 20. Be4 {[%emt 0:00:59]} Be6 {[%emt 0:01:45]} 21. Bg2 {[%emt 0:00:25]} Qd7 {[%emt 0:03:04]} 22. Nf3 {[%emt 0:01:01]} Bf6 {[%emt 0:00:30]} 23. Qxd7 {[%emt 0:00:51]} Bxd7 {[%emt 0:00:01]} 24. Nd2 {[%emt 0:00:13]} Re8 {[%emt 0:01:16]} 25. Ne4 {[%emt 0:00:44]} Bg7 {[%emt 0:00:03]} 26. Nd6 {[%emt 0:01:55]} Re2 {[%emt 0:00:26]} 27. Rb1 {[%emt 0:01:46]} Be6 {[%emt 0:03:20]} 28. Bf3 {[%emt 0:01:01]} Rc2 {[%emt 0:00:29]} 29. Bd1 {[%emt 0:00:51]} Rd2 {[%emt 0:00:21]} 30. Ne4 {[%emt 0:00:07]} Rd8 {[%emt 0:00:06]} 31. Bxh5 {[%emt 0:03:30]} gxh5 {[%emt 0:00:04]} 32. c4 {[%emt 0:00:28]} Bf5 {[%emt 0:02:15]} 33. Bxg7 {[%emt 0:00:02]} Kxg7 {[%emt 0:00:20]} 34. Re1 {[%emt 0:00:03]} Bxe4 {[%emt 0:00:32]} 35. Rxe4 {[%emt 0:00:03]} Rd2 {[%emt 0:00:02]} 36. a4 {[%emt 0:00:27]} Rb2 {[%emt 0:01:23]} 1/2-1/2

[Event "World Prestigious University 2019"]
[Site "Tianjin"]
[Date "2019.11.28"]
[Round "7.7"]
[White "Weichao, Chu"]
[Black "Grigory, Oparin"]
[Result "0-1"]
[WhiteElo "2423"]
[BlackElo "2660"]
[PlyCount "78"]
[EventDate "2019.11.26"]
[EventType "team-tourn"]
[EventCountry "CHN"]
[TimeControl "1500+10"]
[WhiteClock "0:04:30"]
[BlackClock "0:00:28"]

1. d4 {[%emt 0:00:00]} Nf6 {[%emt 0:00:00]} 2. c4 {[%emt 0:00:00]} e6 {[%emt 0:00:00]} 3. Nf3 {[%emt 0:00:00]} Bb4+ {[%emt 0:00:00]} 4. Nbd2 {[%emt 0:00:06]} O-O {[%emt 0:00:00]} 5. a3 {[%emt 0:00:02]} Be7 {[%emt 0:00:01]} 6. e4 {[%emt 0:00:06]} d6 {[%emt 0:00:01]} 7. Be2 {[%emt 0:00:03]} Nfd7 {[%emt 0:00:06]} 8. O-O {[%emt 0:01:50]} e5 {[%emt 0:00:03]} 9. Nb1 {[%emt 0:00:50]} exd4 {[%emt 0:00:09]} 10. Nxd4 {[%emt 0:00:04]} Nc6 {[%emt 0:00:02]} 11. Be3 {[%emt 0:00:12]} Bf6 {[%emt 0:00:20]} 12. Nc3 {[%emt 0:00:19]} Re8 {[%emt 0:00:03]} 13. f3 {[%emt 0:00:46]} Be5 {[%emt 0:03:05]} 14. Nd5 {[%emt 0:02:24]} Nxd4 {[%emt 0:01:18]} 15. Bxd4 {[%emt 0:00:03]} c6 {[%emt 0:00:35]} 16. Nc3 {[%emt 0:02:10]} Nc5 {[%emt 0:00:03]} 17. Bxe5 {[%emt 0:04:14]} dxe5 {[%emt 0:00:02]} 18. b4 {[%emt 0:00:01]} Ne6 {[%emt 0:00:07]} 19. c5 {[%emt 0:00:48]} Qg5 {[%emt 0:06:13]} 20. Qe1 {[%emt 0:00:28]} Nd4 {[%emt 0:01:40]} 21. Rc1 {[%emt 0:00:24]} a5 {[%emt 0:01:16]} 22. Bc4 {[%emt 0:01:39]} axb4 {[%emt 0:00:12]} 23. axb4 {[%emt 0:00:02]} Ra3 {[%emt 0:00:55]} 24. Kh1 {[%emt 0:02:47]} Be6 {[%emt 0:01:41]} 25. Bxe6 {[%emt 0:00:03]} fxe6 {[%emt 0:00:02]} 26. Qg3 {[%emt 0:05:46]} Qxg3 {[%emt 0:04:33]} 27. hxg3 {[%emt 0:00:02]} Rb3 {[%emt 0:00:01]} 28. Kh2 {[%emt 0:02:40]} Ra8 {[%emt 0:00:34]} 29. f4 {[%emt 0:00:19]} Raa3 {[%emt 0:01:32]} 30. Nb1 {[%emt 0:01:32]} Ra2 {[%emt 0:00:02]} 31. Nc3 {[%emt 0:00:06]} Rd2 {[%emt 0:00:06]} 32. Nd1 {[%emt 0:00:13]} Ne2 {[%emt 0:01:01]} 33. Rf2 {[%emt 0:00:05]} Nxg3 {[%emt 0:00:10]} 34. Rxd2 {[%emt 0:00:11]} Nf1+ {[%emt 0:00:02]} 35. Kg1 {[%emt 0:00:05]} Nxd2 {[%emt 0:00:02]} 36. fxe5 {[%emt 0:00:14]} Rxb4 {[%emt 0:00:19]} 37. Nf2 {[%emt 0:00:17]} Nxe4 {[%emt 0:00:16]} 38. Nd3 {[%emt 0:00:08]} Rd4 {[%emt 0:00:16]} 39. Nf4 {[%emt 0:00:03]} Nxc5 {[%emt 0:00:12]} 0-1

[Event "World Prestigious University 2019"]
[Site "Tianjin"]
[Date "2019.11.28"]
[Round "7.8"]
[White "Dmitry, Gordievskiy"]
[Black "Wei, Siyu"]
[Result "1-0"]
[WhiteElo "2590"]
[BlackElo "2106"]
[PlyCount "95"]
[EventDate "2019.11.26"]
[EventType "team-tourn"]
[EventCountry "CHN"]
[TimeControl "1500+10"]
[WhiteClock "0:00:47"]
[BlackClock "0:00:49"]

1. Nf3 {[%emt 0:00:00]} Nf6 {[%emt 0:00:01]} 2. c4 {[%emt 0:00:23]} c5 {[%emt 0:00:23]} 3. Nc3 {[%emt 0:00:38]} Nc6 {[%emt 0:00:29]} 4. d4 {[%emt 0:00:32]} cxd4 {[%emt 0:00:24]} 5. Nxd4 {[%emt 0:00:02]} d6 {[%emt 0:00:34]} 6. e4 {[%emt 0:00:16]} g6 {[%emt 0:00:57]} 7. Be2 {[%emt 0:00:41]} Bg7 {[%emt 0:00:04]} 8. Be3 {[%emt 0:00:09]} O-O {[%emt 0:00:24]} 9. O-O {[%emt 0:00:08]} Bd7 {[%emt 0:00:41]} 10. Qd2 {[%emt 0:01:10]} Rc8 {[%emt 0:01:19]} 11. f3 {[%emt 0:00:52]} a6 {[%emt 0:01:21]} 12. Rfc1 {[%emt 0:00:43]} Nxd4 {[%emt 0:02:34]} 13. Bxd4 {[%emt 0:00:02]} Be6 {[%emt 0:00:15]} 14. b3 {[%emt 0:05:46]} Nd7 {[%emt 0:00:21]} 15. Bxg7 {[%emt 0:02:38]} Kxg7 {[%emt 0:00:03]} 16. Rc2 {[%emt 0:00:42]} Qb6+ {[%emt 0:01:20]} 17. Kh1 {[%emt 0:00:02]} Rc7 {[%emt 0:02:23]} 18. f4 {[%emt 0:00:19]} Nf6 {[%emt 0:04:51]} 19. Bf3 {[%emt 0:01:34]} Qa5 {[%emt 0:01:01]} 20. Qd4 {[%emt 0:00:51]} Qc5 {[%emt 0:00:45]} 21. Qxc5 {[%emt 0:04:18]} Rxc5 {[%emt 0:00:03]} 22. a4 {[%emt 0:01:44]} a5 {[%emt 0:00:59]} 23. Re1 {[%emt 0:00:08]} b6 {[%emt 0:02:15]} 24. Rd2 {[%emt 0:00:04]} Rfc8 {[%emt 0:01:54]} 25. Nb5 {[%emt 0:00:21]} h5 {[%emt 0:00:46]} 26. h3 {[%emt 0:00:15]} Nd7 {[%emt 0:00:48]} 27. Nd4 {[%emt 0:00:26]} Nf8 {[%emt 0:00:29]} 28. Kg1 {[%emt 0:02:04]} Bd7 {[%emt 0:00:13]} 29. e5 {[%emt 0:00:52]} dxe5 {[%emt 0:00:05]} 30. fxe5 {[%emt 0:00:02]} R8c7 {[%emt 0:01:08]} 31. Bd5 {[%emt 0:00:19]} Ne6 {[%emt 0:00:32]} 32. Bxe6 {[%emt 0:00:08]} Bxe6 {[%emt 0:00:08]} 33. Nxe6+ {[%emt 0:00:39]} fxe6 {[%emt 0:00:01]} 34. h4 {[%emt 0:00:35]} Rc8 {[%emt 0:00:08]} 35. Rd7 {[%emt 0:00:01]} R5c7 {[%emt 0:00:05]} 36. Red1 {[%emt 0:00:15]} Kf7 {[%emt 0:00:11]} 37. Kf2 {[%emt 0:00:52]} Ke8 {[%emt 0:00:53]} 38. Rxc7 {[%emt 0:00:02]} Rxc7 {[%emt 0:00:01]} 39. Ke3 {[%emt 0:00:10]} Kf7 {[%emt 0:00:22]} 40. Rd8 {[%emt 0:00:06]} Rc5 {[%emt 0:00:17]} 41. Kd4 {[%emt 0:00:03]} g5 {[%emt 0:00:08]} 42. hxg5 {[%emt 0:00:23]} Kg6 {[%emt 0:00:01]} 43. Rg8+ {[%emt 0:00:06]} Kf5 {[%emt 0:00:10]} 44. g6 {[%emt 0:00:16]} Rc7 {[%emt 0:00:03]} 45. g7 {[%emt 0:00:05]} Rd7+ {[%emt 0:00:09]} 46. Ke3 {[%emt 0:00:24]} Kg6 {[%emt 0:00:01]} 47. Rb8 {[%emt 0:00:04]} Kxg7 {[%emt 0:00:03]} 48. Rxb6 {[%emt 0:00:01]} 1-0

[Event "World Prestigious University 2019"]
[Site "Tianjin"]
[Date "2019.11.28"]
[Round "7.9"]
[White "Lu, Hongyi"]
[Black "Wang, Nancy"]
[Result "1-0"]
[WhiteElo "1862"]
[BlackElo "1823"]
[PlyCount "83"]
[EventDate "2019.11.26"]
[EventType "team-tourn"]
[EventCountry "CHN"]
[TimeControl "1500+10"]
[WhiteClock "0:00:24"]
[BlackClock "0:00:18"]

1. e4 {[%emt 0:00:00]} c5 {[%emt 0:00:00]} 2. Nf3 {[%emt 0:00:00]} Nc6 {[%emt 0:00:00]} 3. d3 {[%emt 0:00:18]} g6 {[%emt 0:00:04]} 4. g3 {[%emt 0:00:06]} Bg7 {[%emt 0:00:02]} 5. Bg2 {[%emt 0:00:03]} d6 {[%emt 0:00:34]} 6. O-O {[%emt 0:00:08]} e5 {[%emt 0:00:38]} 7. c3 {[%emt 0:00:10]} Nge7 {[%emt 0:00:08]} 8. a4 {[%emt 0:00:43]} O-O {[%emt 0:00:15]} 9. Na3 {[%emt 0:01:17]} h6 {[%emt 0:02:52]} 10. Nc4 {[%emt 0:01:15]} Be6 {[%emt 0:06:03]} 11. Be3 {[%emt 0:01:28]} f5 {[%emt 0:00:59]} 12. exf5 {[%emt 0:03:10]} gxf5 {[%emt 0:02:36]} 13. Re1 {[%emt 0:04:00]} Ng6 {[%emt 0:01:18]} 14. Ncd2 {[%emt 0:04:42]} Qd7 {[%emt 0:01:39]} 15. Nf1 {[%emt 0:00:32]} f4 {[%emt 0:02:59]} 16. Bd2 {[%emt 0:03:21]} Na5 {[%emt 0:00:22]} 17. c4 {[%emt 0:00:32]} Nc6 {[%emt 0:00:13]} 18. Bc3 {[%emt 0:00:27]} Bg4 {[%emt 0:00:27]} 19. N1d2 {[%emt 0:00:32]} Rab8 {[%emt 0:03:37]} 20. a5 {[%emt 0:00:04]} h5 {[%emt 0:00:16]} 21. h4 {[%emt 0:02:07]} Bh6 {[%emt 0:00:49]} 22. Qc2 {[%emt 0:00:15]} fxg3 {[%emt 0:00:36]} 23. fxg3 {[%emt 0:00:03]} Bh3 {[%emt 0:01:06]} 24. Ne4 {[%emt 0:01:41]} Nd4 {[%emt 0:00:38]} 25. Bxd4 {[%emt 0:00:19]} cxd4 {[%emt 0:00:06]} 26. Nfg5 {[%emt 0:00:14]} Bxg2 {[%emt 0:00:24]} 27. Qxg2 {[%emt 0:00:18]} Rbd8 {[%emt 0:00:26]} 28. Rf1 {[%emt 0:00:12]} Bg7 {[%emt 0:00:02]} 29. Qe2 {[%emt 0:00:13]} Qg4 {[%emt 0:00:11]} 30. Qxg4 {[%emt 0:00:06]} hxg4 {[%emt 0:00:01]} 31. Rxf8+ {[%emt 0:00:39]} Nxf8 {[%emt 0:00:04]} 32. a6 {[%emt 0:00:32]} b6 {[%emt 0:00:10]} 33. Rf1 {[%emt 0:00:21]} Rd7 {[%emt 0:00:02]} 34. b4 {[%emt 0:00:19]} Nh7 {[%emt 0:00:21]} 35. Kg2 {[%emt 0:00:17]} Nxg5 {[%emt 0:00:31]} 36. Nxg5 {[%emt 0:00:03]} Bh6 {[%emt 0:00:05]} 37. Rf5 {[%emt 0:00:11]} Rg7 {[%emt 0:00:15]} 38. Ne6 {[%emt 0:00:11]} Rg6 {[%emt 0:00:12]} 39. Nc7 {[%emt 0:00:16]} Rg7 {[%emt 0:00:13]} 40. Nb5 {[%emt 0:00:14]} Bd2 {[%emt 0:00:09]} 41. Nxd6 {[%emt 0:00:06]} Bxb4 {[%emt 0:00:03]} 42. Ne4 {[%emt 0:00:17]} 1-0